fUST/lending_fUST_20250106
["ID","MTS","AMOUNT","RATE_DAILY","PERIOD"]
[347782067,1736104233842,-151.0,0.000223,7]
[347782069,1736104233851,-342.94039712,0.00022383,2]
[347782070,1736104233862,-11006.451595,0.00022386,2]
[347782072,1736104233872,-151.0,0.000224,10]
[347782074,1736104233883,-420.0,0.00022448,2]
[347782076,1736104233893,-342.94039712,0.00022486,2]
[347782078,1736104233903,-2541.69,0.00022549,3]
[347782080,1736104233913,-2265.23,0.00022549,3]
[347782082,1736104233923,-2265.23,0.00022549,3]
[347782084,1736104233934,-2265.23,0.00022549,3]
[347782086,1736104233944,-2251.21066158,0.00022549,3]
[347782350,1736104238341,-500.0,0.00020356,3]
[347782352,1736104238351,-37.04471418,0.0002063,3]
[347782674,1736104241928,-462.95528582,0.0002063,3]
[347782676,1736104241939,-500.0,0.00020904,3]
[347782678,1736104241949,-500.0,0.00021178,3]
[347782679,1736104241958,-500.0,0.00021452,3]
[347782682,1736104241968,-245.25204175,0.00021726,3]
[347782684,1736104241977,-14.01933842,0.00022549,3]
[347782686,1736104241986,-2265.45773436,0.00022549,3]
[347782687,1736104241995,-500.0,0.0002255,3]
[347782689,1736104242005,-500.0,0.0002255,3]
[347782692,1736104242014,-1035.52,0.00022553,3]
[347782694,1736104242024,-330.3,0.00022553,3]
[347782696,1736104242033,-342.94039712,0.0002259,2]
[347782698,1736104242043,-3997.80121693,0.00022591,2]
[347782700,1736104242054,-2452.68352797,0.00022591,2]
[347782702,1736104242066,-4555.96685012,0.00022591,2]
[347782704,1736104242075,-151.0,0.000226,5]
[347782706,1736104242085,-342.94039712,0.00022693,2]
[347782708,1736104242094,-151.0,0.000227,9]
[347782710,1736104242104,-153.93,0.000227,31]
[347782712,1736104242113,-244.2410072,0.00022725,2]
[347782714,1736104242122,-342.94039712,0.00022797,2]
[347782716,1736104242131,-610.46,0.000228,2]
[347782718,1736104242141,-2541.69,0.00022823,3]
[347782721,1736104242151,-500.0,0.00022824,3]
[347782723,1736104242160,-1035.52,0.00022827,3]
[347782725,1736104242169,-151.0,0.00022855,7]
[347782727,1736104242179,-207.915002,0.00022855,7]
[347782729,1736104242189,-207.915002,0.00022855,7]
[347782731,1736104242198,-1536.05458968,0.00022868,2]
[347782733,1736104242207,-1536.05458968,0.00022868,2]
[347782735,1736104242216,-1536.05458968,0.00022868,2]
[347782737,1736104242225,-1536.05458968,0.00022868,2]
[347782738,1736104242234,-1536.05458968,0.00022868,2]
[347782739,1736104242244,-1536.05458968,0.00022868,2]
[347782741,1736104242253,-1536.05458968,0.00022868,2]
[347782743,1736104242263,-1536.05458968,0.00022868,2]
[347782745,1736104242271,-1536.05458968,0.00022868,2]
[347782747,1736104242280,-1536.05458968,0.00022868,2]
[347782749,1736104242289,-1536.05458968,0.00022868,2]
[347782750,1736104242299,-1536.05458968,0.00022868,2]
[347782752,1736104242308,-1536.05458968,0.00022868,2]
[347782754,1736104242318,-1536.05458968,0.00022868,2]
[347782757,1736104242327,-1536.05458968,0.00022868,2]
[347782759,1736104242337,-1536.05458968,0.00022868,2]
[347782760,1736104242346,-1536.05458968,0.00022868,2]
[347782762,1736104242356,-1536.05458968,0.00022868,2]
[347782764,1736104242365,-1536.05458968,0.00022868,2]
[347782766,1736104242375,-1536.05,0.00022868,2]
[347782768,1736104242384,-2304.08188451,0.00022868,2]
[347782770,1736104242393,-2304.08188451,0.00022868,2]
[347782772,1736104242402,-2304.08188451,0.00022868,2]
[347782774,1736104242411,-2304.08188451,0.00022868,2]
[347782775,1736104242420,-2304.08188451,0.00022868,2]
[347782776,1736104242430,-2304.08188451,0.00022868,2]
[347782777,1736104242439,-2304.08188451,0.00022868,2]
[347782778,1736104242449,-2304.08188451,0.00022868,2]
[347782779,1736104242459,-2304.08188451,0.00022868,2]
[347782781,1736104242468,-2304.08188451,0.00022868,2]
[347782783,1736104242477,-2304.08188451,0.00022868,2]
[347782785,1736104242486,-2304.08188451,0.00022868,2]
[347782787,1736104242495,-2304.08188451,0.00022868,2]
[347782789,1736104242505,-2304.08188451,0.00022868,2]
[347782791,1736104242515,-2304.08188451,0.00022868,2]
[347782793,1736104242524,-2304.08188451,0.00022868,2]
[347782795,1736104242534,-2304.08188451,0.00022868,2]
[347782797,1736104242543,-2304.08188451,0.00022868,2]
[347782799,1736104242553,-2304.08188451,0.00022868,2]
[347782801,1736104242562,-2304.08,0.00022868,2]
[347782803,1736104242572,-538.62451467,0.00022868,2]
[347782805,1736104242581,-538.62451467,0.00022868,2]
[347782807,1736104242591,-538.62451467,0.00022868,2]
[347782809,1736104242601,-538.62451467,0.00022868,2]
[347782811,1736104242610,-538.62451467,0.00022868,2]
[347782813,1736104242620,-538.62451467,0.00022868,2]
[347782815,1736104242630,-538.62451467,0.00022868,2]
[347782817,1736104242639,-538.62451467,0.00022868,2]
[347782819,1736104242650,-538.62451467,0.00022868,2]
[347782821,1736104242660,-538.62451467,0.00022868,2]
[347782823,1736104242670,-538.62451467,0.00022868,2]
[347782825,1736104242679,-538.62451467,0.00022868,2]
[347782827,1736104242692,-538.62451467,0.00022868,2]
[347782829,1736104242702,-538.62451467,0.00022868,2]
[347782831,1736104242711,-538.62451467,0.00022868,2]
[347782833,1736104242721,-538.62451467,0.00022868,2]
[347782835,1736104242730,-538.62451467,0.00022868,2]
[347782837,1736104242739,-538.62451467,0.00022868,2]
[347782839,1736104242749,-538.62451467,0.00022868,2]
[347782841,1736104242759,-538.62,0.00022868,2]
[347782843,1736104242768,-807.936772,0.00022868,2]
[347782844,1736104242778,-807.936772,0.00022868,2]
[347782846,1736104242788,-807.936772,0.00022868,2]
[347782848,1736104242797,-807.936772,0.00022868,2]
[347782850,1736104242807,-807.936772,0.00022868,2]
[347782852,1736104242817,-807.936772,0.00022868,2]
[347782854,1736104242827,-807.936772,0.00022868,2]
[347782856,1736104242837,-807.936772,0.00022868,2]
[347782858,1736104242846,-807.936772,0.00022868,2]
[347782860,1736104242855,-807.936772,0.00022868,2]
[347782862,1736104242865,-807.936772,0.00022868,2]
[347782864,1736104242874,-807.936772,0.00022868,2]
[347782866,1736104242884,-807.936772,0.00022868,2]
[347782868,1736104242893,-807.936772,0.00022868,2]
[347782870,1736104242902,-807.936772,0.00022868,2]
[347782872,1736104242912,-807.936772,0.00022868,2]
[347782874,1736104242921,-807.936772,0.00022868,2]
[347782876,1736104242930,-807.936772,0.00022868,2]
[347782878,1736104242941,-807.936772,0.00022868,2]
[347782880,1736104242951,-807.93,0.00022868,2]
[347782881,1736104242960,-165.51627022,0.00022868,2]
[347782883,1736104242970,-342.94039712,0.000229,2]
[347782885,1736104242979,-53954.35818799,0.0002291,2]
[347782887,1736104242989,-156.2590886,0.00022932,2]
[347782889,1736104242998,-203.59,0.0002294,2]
[347782891,1736104243007,-547.229491,0.00022941,7]
[347782893,1736104243018,-547.229491,0.00022941,7]
[347782895,1736104243027,-151.0,0.00022943,7]
[347782897,1736104243037,-151.0,0.00022943,7]
[347782899,1736104243047,-151.0,0.00022943,7]
[347782901,1736104243056,-151.0,0.00022943,7]
[347782903,1736104243065,-151.0,0.00022943,7]
[347782905,1736104243074,-151.0,0.00022943,7]
[347782907,1736104243083,-151.0,0.00022943,7]
[347782910,1736104243093,-151.0,0.00022943,7]
[347782911,1736104243102,-160.220332,0.00022943,7]
[347782912,1736104243111,-151.0,0.00022943,7]
[347782913,1736104243121,-221.289391,0.00022943,7]
[347782914,1736104243131,-151.0,0.00022943,7]
[347782915,1736104243140,-151.0,0.00022943,7]
[347782916,1736104243149,-151.0,0.00022943,7]
[347782917,1736104243158,-151.0,0.00022943,7]
[347782918,1736104243168,-151.0,0.00022943,7]
[347782919,1736104243177,-151.0,0.00022943,7]
[347782920,1736104243187,-151.0,0.00022943,7]
[347782921,1736104243197,-151.0,0.00022943,7]
[347782922,1736104243206,-151.0,0.00022943,7]
[347782923,1736104243215,-151.0,0.00022943,7]
[347782924,1736104243224,-151.0,0.00022943,7]
[347782926,1736104243233,-151.0,0.00022943,7]
[347782928,1736104243243,-151.0,0.00022943,7]
[347782930,1736104243252,-151.0,0.00022943,7]
[347782932,1736104243261,-151.0,0.00022943,7]
[347782934,1736104243271,-151.0,0.00022943,7]
[347782936,1736104243280,-181.890954,0.00022943,7]
[347782938,1736104243289,-151.0,0.00022943,7]
[347782940,1736104243298,-151.0,0.00022943,7]
[347782942,1736104243307,-151.0,0.00022943,7]
[347782944,1736104243316,-151.0,0.00022943,7]
[347782946,1736104243326,-151.0,0.00022943,7]
[347782948,1736104243335,-151.0,0.00022943,7]
[347782950,1736104243344,-151.0,0.00022943,7]
[347782952,1736104243353,-151.0,0.00022943,7]
[347782954,1736104243362,-151.0,0.00022943,7]
[347782956,1736104243371,-151.0,0.00022943,7]
[347782958,1736104243381,-151.0,0.00022943,7]
[347782960,1736104243391,-242.715543,0.00022943,7]
[347782962,1736104243400,-547.229491,0.00022943,7]
[347782964,1736104243409,-547.229491,0.00022943,7]
[347782966,1736104243417,-547.229491,0.00022943,7]
[347782968,1736104243427,-547.229491,0.00022943,7]
[347782970,1736104243437,-547.229491,0.00022943,7]
[347782972,1736104243446,-547.229491,0.00022943,7]
[347782974,1736104243456,-547.229491,0.00022943,7]
[347782976,1736104243465,-547.229491,0.00022943,7]
[347782977,1736104243474,-547.229491,0.00022943,7]
[347782979,1736104243483,-547.229491,0.00022943,7]
[347782981,1736104243493,-547.229491,0.00022943,7]
[347782983,1736104243502,-547.229491,0.00022943,7]
[347782985,1736104243512,-547.229491,0.00022943,7]
[347782986,1736104243521,-547.229491,0.00022943,7]
[347782988,1736104243531,-547.229491,0.00022943,7]
[347782990,1736104243540,-547.229483,0.00022943,7]
[347782992,1736104243550,-151.0,0.00022943,7]
[347782994,1736104243559,-151.0,0.00022943,7]
[347782996,1736104243568,-151.0,0.00022943,7]
[347782998,1736104243577,-151.0,0.00022943,7]
[347783000,1736104243586,-151.0,0.00022943,7]
[347783002,1736104243596,-151.0,0.00022943,7]
[347783004,1736104243606,-151.0,0.00022943,7]
[347783006,1736104243616,-151.0,0.00022943,7]
[347783008,1736104243625,-151.0,0.00022943,7]
[347783010,1736104243635,-266.820184,0.00022943,7]
[347783012,1736104243645,-218.339008,0.00022943,7]
[347783014,1736104243654,-151.0,0.00022943,7]
[347783016,1736104243663,-151.0,0.00022943,7]
[347783017,1736104243673,-151.0,0.00022943,7]
[347783020,1736104243682,-151.0,0.00022943,7]
[347783023,1736104243696,-151.0,0.00022943,7]
[347783026,1736104243706,-151.0,0.00022943,7]
[347783028,1736104243715,-151.0,0.00022943,7]
[347783039,1736104243817,-151.0,0.00022943,7]
[347783041,1736104243828,-151.0,0.00022943,7]
[347783043,1736104243838,-151.0,0.00022943,7]
[347783045,1736104243847,-151.0,0.00022943,7]
[347783047,1736104243857,-151.0,0.00022943,7]
[347783049,1736104243867,-151.0,0.00022943,7]
[347783051,1736104243876,-151.0,0.00022943,7]
[347783053,1736104243886,-151.0,0.00022943,7]
[347783055,1736104243895,-151.0,0.00022943,7]
[347783057,1736104243905,-246.872883,0.00022943,7]
[347783059,1736104243914,-151.0,0.00022943,7]
[347783061,1736104243924,-151.0,0.00022943,7]
[347783063,1736104243934,-151.0,0.00022943,7]
[347783065,1736104243944,-151.0,0.00022943,7]
[347783067,1736104243953,-151.0,0.00022943,7]
[347783069,1736104243962,-151.0,0.00022943,7]
[347783071,1736104243972,-182.545176,0.00022943,7]
[347783073,1736104243981,-198.36019122,0.00022954,2]
[347783075,1736104243991,-151.0,0.00022955,7]
[347783077,1736104244001,-151.0,0.00022955,7]
[347783079,1736104244010,-151.0,0.00022955,7]
[347783081,1736104244020,-151.0,0.00022955,7]
[347783083,1736104244031,-151.0,0.00022964,7]
[347783085,1736104244040,-282.00278,0.00022964,7]
[347783087,1736104244050,-151.0,0.00022964,7]
[347783089,1736104244059,-151.0,0.00022964,7]
[347783091,1736104244068,-207.915002,0.00022964,7]
[347783093,1736104244077,-207.915002,0.00022964,7]
[347783095,1736104244087,-207.915002,0.00022964,7]
[347783097,1736104244098,-207.915002,0.00022964,7]
[347783099,1736104244107,-207.915002,0.00022964,7]
[347783101,1736104244116,-207.915002,0.00022964,7]
[347783103,1736104244126,-207.915002,0.00022964,7]
[347783105,1736104244135,-207.915002,0.00022964,7]
[347783107,1736104244144,-207.915002,0.00022964,7]
[347783109,1736104244153,-207.915002,0.00022964,7]
[347783111,1736104244163,-207.915002,0.00022964,7]
[347783113,1736104244172,-207.915002,0.00022964,7]
[347783115,1736104244182,-207.915002,0.00022964,7]
[347783117,1736104244192,-207.914999,0.00022964,7]
[347783120,1736104244202,-151.0,0.00022964,7]
[347783122,1736104244211,-151.0,0.00022964,7]
[347783123,1736104244220,-151.0,0.00022964,7]
[347783125,1736104244230,-151.0,0.00022964,7]
[347783127,1736104244240,-151.0,0.00022964,7]
[347783129,1736104244249,-162.765594,0.00022964,7]
[347783131,1736104244259,-151.0,0.00022964,7]
[347783133,1736104244268,-151.0,0.00022964,7]
[347783135,1736104244277,-151.0,0.00022964,7]
[347783137,1736104244287,-151.0,0.00022964,7]
[347783139,1736104244297,-6311.89773252,0.00022967,2]
[347783141,1736104244306,-89381.30498861,0.00022967,2]
[347783143,1736104244315,-182912.32226854,0.00022968,10]
[347783149,1736104245072,-8704.83160044,0.00022968,10]
[347783150,1736104245102,-898.805238,0.00022968,10]
[347783242,1736104247955,-163.2092762,0.00019808,3]
[347783243,1736104247968,-336.7907238,0.00019808,3]
[347783244,1736104247978,-1288.59344836,0.00022968,10]
[347783248,1736104574605,160.874424,0.00013973,2]
[347783250,1736105157128,-205.115227,0.00018986,2]
[347783251,1736105157150,-508.311533,0.00019178,2]
[347783252,1736105226196,-449.378467,0.00019178,2]
[347783253,1736105226241,-500.0,0.00019178,2]
[347783254,1736105226285,-530.4,0.00019178,2]
[347783255,1736105226326,-500.0,0.00019178,2]
[347783256,1736105226367,-158.797416,0.00019178,2]
[347783257,1736105226409,-300.0,0.00019451,2]
[347783258,1736105226452,-957.69,0.00019452,3]
[347783259,1736105226497,-640.52,0.00019452,3]
[347783260,1736105226539,-957.69,0.00019726,3]
[347783261,1736105226580,-4303.9868949,0.00019788,2]
[347783262,1736105226618,-1299.10456444,0.000198,2]
[347783263,1736105226658,-500.0,0.00019808,3]
[347783264,1736105226697,-500.0,0.00019808,3]
[347783265,1736105226737,-500.0,0.00019808,3]
[347783266,1736105226778,-500.0,0.00019808,3]
[347783267,1736105226818,-500.0,0.00019809,3]
[347783268,1736105226858,-500.0,0.00019809,3]
[347783269,1736105226897,-500.0,0.00019809,3]
[347783270,1736105226937,-500.0,0.00019809,3]
[347783271,1736105226979,-500.0,0.00019809,3]
[347783272,1736105227022,-500.0,0.00019809,3]
[347783273,1736105227063,-500.0,0.00019809,3]
[347783274,1736105227103,-500.0,0.00019809,3]
[347783275,1736105227142,-500.0,0.00019809,3]
[347783276,1736105227185,-500.0,0.00019809,3]
[347783277,1736105227224,-500.0,0.00019809,3]
[347783278,1736105227266,-500.0,0.00019809,3]
[347783279,1736105227311,-500.0,0.00019809,3]
[347783280,1736105227356,-500.0,0.00019809,3]
[347783281,1736105227399,-485.16098105,0.00019809,3]
[347783283,1736105349153,-3632.33421939,0.00018,2]
[347783284,1736105352145,-540.49656245,0.00018,2]
[347783285,1736105356208,-40.48011844,0.00018,2]
[347783286,1736105356252,-300.0,0.00019808,2]
[347783287,1736105356296,-14.83901895,0.00019809,3]
[347783288,1736105356341,-500.0,0.00019809,3]
[347783289,1736105356384,-538.59,0.00019809,3]
[347783290,1736105356426,-500.0,0.00019809,3]
[347783291,1736105356470,-500.0,0.00019809,3]
[347783292,1736105356512,-500.0,0.00019809,3]
[347783293,1736105356555,-500.0,0.00019809,3]
[347783294,1736105356597,-156.56,0.00019809,2]
[347783295,1736105356639,-359.69166261,0.0001981,3]
[347783321,1736105432653,-500.0,0.00019178,2]
[347783323,1736105432662,-500.0,0.00019452,3]
[347783325,1736105432672,-500.0,0.00019726,3]
[347783327,1736105432681,-316.76,0.00019808,3]
[347783329,1736105432692,-500.0,0.00019809,3]
[347783331,1736105432702,-586.28,0.00019809,3]
[347783333,1736105432712,-192.42,0.00019809,3]
[347783335,1736105432721,-463.37,0.00019809,3]
[347783337,1736105432731,-279.12833739,0.0001981,3]
[347783339,1736105432741,-500.0,0.0002,3]
[347783341,1736105432750,-300.0,0.00020081,2]
[347783343,1736105432760,-500.0,0.00020082,3]
[347783345,1736105432769,-500.0,0.00020082,3]
[347783347,1736105432779,-500.0,0.00020082,3]
[347783349,1736105432789,-500.0,0.00020083,3]
[347783351,1736105432798,-500.0,0.00020083,3]
[347783353,1736105432808,-500.0,0.00020083,3]
[347783355,1736105432817,-648.92,0.00020083,3]
[347783356,1736105432837,-284.09,0.00020083,3]
[347783357,1736105432847,-500.0,0.00020273,3]
[347783358,1736105432857,-760.18548813,0.00020355,3]
[347783385,1736105438478,-404.75567804,0.00020355,3]
[347783386,1736105438510,-583.44883383,0.00020355,3]
[347783387,1736105438519,-65.78622117,0.00020355,3]
[347783388,1736105438531,-160.64964797,0.00020355,3]
[347783389,1736105438540,-500.0,0.00020356,3]
[347783390,1736105438550,-500.0,0.00020357,3]
[347783391,1736105438559,-500.0,0.00020357,3]
[347783392,1736105438568,-500.0,0.00020547,3]
[347783393,1736105438578,-500.0,0.00020628,3]
[347783394,1736105438587,-293.44831312,0.00020628,3]
[347783395,1736105438600,-206.55168688,0.00020628,3]
[347783396,1736105438610,-1748.39,0.00020629,3]
[347783397,1736105438619,-500.0,0.0002063,3]
[347783398,1736105438629,-159.09,0.00020631,3]
[347783399,1736105438638,-500.0,0.00020631,3]
[347783400,1736105438648,-500.0,0.00020821,3]
[347783401,1736105438657,-587.44,0.00020902,3]
[347783402,1736105438667,-1748.39,0.00020903,3]
[347783403,1736105438677,-317.36,0.00020904,3]
[347783404,1736105438686,-522.28,0.00020905,3]
[347783405,1736105438697,-500.0,0.00021095,3]
[347783406,1736105438707,-407.82814312,0.00021176,3]
[347783424,1736105442036,-92.17185688,0.00021176,3]
[347783425,1736105442046,-500.0,0.00021177,3]
[347783426,1736105442056,-1158.62283644,0.00021177,3]
[347783427,1736105442068,-589.76716356,0.00021177,3]
[347783428,1736105442077,-500.0,0.00021369,3]
[347783429,1736105442087,-503.96162591,0.0002145,3]
[347783430,1736105442096,-500.0,0.0002145,3]
[347783431,1736105442105,-473.07673612,0.0002145,3]
[347783450,1736105443603,-27.85443685,0.0002145,3]
[347783451,1736105443613,-500.0,0.0002145,3]
[347783452,1736105443623,-498.68781165,0.0002145,3]
[347783453,1736105443636,-1.31218835,0.0002145,3]
[347783454,1736105443645,-500.0,0.0002145,3]
[347783455,1736105443655,-571.03290203,0.0002145,3]
[347783456,1736105443664,-500.0,0.0002145,3]
[347783457,1736105443674,-500.0,0.0002145,3]
[347783458,1736105443683,-500.0,0.0002145,5]
[347783459,1736105443693,-503.03967367,0.0002145,3]
[347783460,1736105443704,-500.0,0.0002145,3]
[347783461,1736105443715,-500.0,0.0002145,3]
[347783462,1736105443726,-500.0,0.0002145,3]
[347783463,1736105443735,-500.0,0.00021451,3]
[347783464,1736105443745,-1748.39,0.00021451,3]
[347783465,1736105443754,-500.0,0.00021643,3]
[347783466,1736105443764,-161.821478,0.0002169,2]
[347783467,1736105443774,-261.6092454,0.00021725,3]
[347783468,1736105443783,-1748.39,0.00021725,3]
[347783469,1736105443792,-356.633,0.0002182,2]
[347783470,1736105443802,-420.0,0.00021864,2]
[347783471,1736105443811,-500.0,0.00021917,3]
[347783472,1736105443822,-1748.39,0.00021999,3]
[347783473,1736105443831,-284.0,0.00022,2]
[347783474,1736105443840,-428.8088492,0.00022137,2]
[347783475,1736105443850,-306.0,0.00022137,2]
[347783476,1736105443859,-153.6400067,0.00022137,2]
[347783477,1736105443870,-307.0715694,0.00022137,2]
[347783478,1736105443879,-153.0,0.00022137,2]
[347783479,1736105443888,-153.0,0.00022137,2]
[347783480,1736105443898,-500.0,0.00022191,3]
[347783481,1736105443907,-1748.39,0.00022273,3]
[347783482,1736105443916,-153.0,0.00022411,2]
[347783483,1736105443925,-296.88,0.00022465,3]
[347783484,1736105443935,-192.86300401,0.00022499,2]
[347783485,1736105443944,-9807.24765187,0.000225,5]
[347783500,1736105462366,160.873112,0.00013973,2]
[347783505,1736105944125,1000.0,0.00025,120]
[347783509,1736106355141,-188.19116825,0.00019253,2]
[347783510,1736106355161,-161.821478,0.00019448,2]
[347783511,1736106355184,-948.3055882,0.00019808,3]
[347783512,1736106412096,-56.0844118,0.00019808,3]
[347783513,1736106412118,-130.88430672,0.00019808,3]
[347783514,1736106426195,-369.11569328,0.00019808,3]
[347783515,1736106426241,-500.0,0.00019809,3]
[347783516,1736106426285,-229.11,0.00019809,3]
[347783517,1736106426331,-500.0,0.00019809,3]
[347783518,1736106426376,-500.0,0.00019809,3]
[347783519,1736106426421,-1004.39,0.00020082,3]
[347783520,1736106426465,-353.52,0.00020082,3]
[347783521,1736106426508,-500.0,0.00020083,3]
[347783522,1736106426553,-500.0,0.00020083,3]
[347783523,1736106426596,-1004.39,0.00020356,3]
[347783524,1736106426641,-500.0,0.00020357,3]
[347783525,1736106426684,-452.41,0.00020357,3]
[347783526,1736106426727,-500.0,0.00020627,3]
[347783527,1736106426776,-500.0,0.00020627,3]
[347783528,1736106426819,-509.57,0.00020627,3]
[347783529,1736106426862,-500.0,0.00020627,3]
[347783530,1736106426904,-500.0,0.00020627,3]
[347783531,1736106426947,-500.0,0.00020627,3]
[347783532,1736106426989,-500.0,0.00020627,3]
[347783533,1736106427034,-500.0,0.00020627,3]
[347783534,1736106427076,-381.16,0.00020628,3]
[347783535,1736106427119,-509.23,0.00020628,3]
[347783536,1736106427161,-384.73511121,0.00020628,3]
[347783537,1736106427202,-500.0,0.00020628,3]
[347783538,1736106427244,-500.0,0.00020628,3]
[347783539,1736106427284,-500.0,0.00020628,3]
[347783540,1736106427325,-500.0,0.00020628,3]
[347783541,1736106427368,-500.0,0.00020628,3]
[347783542,1736106427411,-500.0,0.00020628,3]
[347783543,1736106427453,-500.0,0.00020628,3]
[347783544,1736106427495,-500.0,0.00020628,5]
[347783545,1736106427538,-500.0,0.00020628,3]
[347783546,1736106427579,-500.0,0.00020628,3]
[347783547,1736106427621,-500.0,0.00020628,3]
[347783548,1736106427661,-500.0,0.00020628,3]
[347783549,1736106427704,-258.47348917,0.00020628,3]
[347783550,1736106427747,-511.00901209,0.00020628,3]
[347783551,1736106491226,160.895551,0.00013973,2]
[347783557,1736106568138,-348.6641464,0.00019809,3]
[347783558,1736106570188,-151.3358536,0.00019809,3]
[347783559,1736106570230,-112.71184599,0.00020626,2]
[347783622,1736106632086,-300.0,0.00020626,2]
[347783624,1736106632097,-500.0,0.00020627,3]
[347783626,1736106632108,-621.15,0.00020627,3]
[347783628,1736106632119,-598.65,0.00020627,3]
[347783630,1736106632129,-500.0,0.00020627,3]
[347783632,1736106632140,-500.0,0.00020627,3]
[347783635,1736106632151,-500.0,0.00020627,3]
[347783637,1736106632163,-500.0,0.00020627,3]
[347783639,1736106632175,-500.0,0.00020627,3]
[347783641,1736106632186,-500.0,0.00020627,3]
[347783644,1736106632198,-500.0,0.00020627,3]
[347783646,1736106632208,-500.0,0.00020627,3]
[347783648,1736106632218,-500.0,0.00020627,3]
[347783650,1736106632229,-500.0,0.00020627,3]
[347783652,1736106632240,-500.0,0.00020627,3]
[347783655,1736106632252,-30.84098791,0.00020628,3]
[347783657,1736106632262,-616.54,0.00020628,3]
[347783659,1736106632272,-500.0,0.00020628,3]
[347783661,1736106632283,-178.66,0.00020628,3]
[347783663,1736106632294,-500.0,0.00020628,3]
[347783666,1736106632305,-1004.39,0.0002063,3]
[347783668,1736106632316,-500.0,0.00020631,3]
[347783670,1736106632327,-500.0,0.000209,3]
[347783672,1736106632337,-452.04,0.00020901,3]
[347783674,1736106632348,-500.0,0.00020901,3]
[347783676,1736106632359,-558.42519995,0.00020901,3]
[347783678,1736106632369,-500.0,0.00020901,3]
[347783680,1736106632379,-500.0,0.00020901,3]
[347783683,1736106632389,-500.0,0.00020901,3]
[347783685,1736106632398,-500.0,0.00020901,3]
[347783687,1736106632408,-500.0,0.00020901,3]
[347783689,1736106632418,-500.0,0.00020901,3]
[347783691,1736106632429,-500.0,0.00020901,3]
[347783693,1736106632440,-502.01,0.00020901,3]
[347783695,1736106632450,-500.0,0.00020901,3]
[347783697,1736106632460,-500.0,0.00020901,3]
[347783699,1736106632471,-500.0,0.00020901,3]
[347783701,1736106632482,-500.0,0.00020901,3]
[347783704,1736106632493,-500.0,0.00020901,3]
[347783707,1736106632518,-500.0,0.00020901,3]
[347783710,1736106632532,-500.0,0.00020901,3]
[347783712,1736106632545,-500.0,0.00020901,3]
[347783715,1736106632559,-500.0,0.00020901,3]
[347783717,1736106632572,-156.56,0.00020901,2]
[347783719,1736106632584,-500.0,0.00020902,3]
[347783722,1736106632598,-500.0,0.00020902,3]
[347783724,1736106632611,-500.0,0.00020903,3]
[347783726,1736106632623,-500.0,0.00020904,3]
[347783729,1736106632636,-500.0,0.00020904,3]
[347783731,1736106632650,-500.0,0.00020904,3]
[347783733,1736106632661,-500.0,0.00020904,3]
[347783736,1736106632673,-510.10798842,0.00020904,3]
[347783738,1736106632685,-500.0,0.00020904,3]
[347783740,1736106632697,-500.0,0.00020904,3]
[347783742,1736106632707,-1004.39,0.00020904,3]
[347783744,1736106632717,-500.0,0.00020904,3]
[347783746,1736106632727,-500.0,0.00020904,3]
[347783749,1736106632738,-500.0,0.00020904,3]
[347783751,1736106632748,-500.0,0.00020904,3]